lending/lending_fUSD_20240824
["ID","MTS","AMOUNT","RATE_DAILY","PERIOD"]
[335829921,1724520650829,-1979.56,0.00010999,2]
[335829922,1724520650838,-1979.56,0.00010999,2]
[335829923,1724520650847,-1979.56,0.00010999,2]
[335829924,1724520650856,-500.0,0.00010999,2]
[335829925,1724520650865,-1979.56,0.00010999,2]
[335829926,1724520650874,-500.0,0.00010999,2]
[335829927,1724520650883,-500.0,0.00010999,2]
[335829928,1724520650892,-500.0,0.00010999,2]
[335829929,1724520650901,-500.0,0.00010999,2]
[335829930,1724520650911,-1979.56,0.00010999,2]
[335829931,1724520650919,-1979.56,0.00010999,2]
[335829932,1724520650928,-500.0,0.00010999,2]
[335829933,1724520650938,-1979.56,0.00010999,2]
[335829934,1724520650947,-500.0,0.00010999,2]
[335829935,1724520650955,-1979.56,0.00010999,2]
[335829936,1724520650965,-500.0,0.00010999,2]
[335829937,1724520650974,-1979.56,0.00010999,2]
[335829938,1724520650983,-500.0,0.00010999,2]
[335829939,1724520650992,-1979.56,0.00010999,2]
[335829940,1724520651001,-500.0,0.00010999,2]
[335829941,1724520651010,-1979.56,0.00010999,2]
[335829942,1724520651019,-500.0,0.00010999,2]
[335829943,1724520651027,-1979.56,0.00010999,2]
[335829944,1724520651036,-500.0,0.00010999,2]
[335829945,1724520651046,-1979.56,0.00010999,2]
[335829946,1724520651055,-500.0,0.00010999,2]
[335829947,1724520651064,-1979.56,0.00010999,2]
[335829948,1724520651073,-500.0,0.00010999,2]
[335829949,1724520651083,-1979.56,0.00010999,2]
[335829950,1724520651092,-500.0,0.00010999,2]
[335829951,1724520651101,-1979.56,0.00010999,2]
[335829952,1724520651110,-500.0,0.00010999,2]
[335829953,1724520651119,-1979.56,0.00010999,2]
[335829954,1724520651128,-500.0,0.00010999,2]
[335829955,1724520651137,-1979.56,0.00010999,2]
[335829956,1724520651148,-500.0,0.00010999,2]
[335829957,1724520651157,-530.96,0.00010999,2]
[335829958,1724520651166,-1979.56,0.00010999,2]
[335829959,1724520651175,-1979.56,0.00010999,2]
[335829960,1724520651184,-1979.56,0.00010999,2]
[335829961,1724520651193,-1979.56,0.00010999,2]
[335829962,1724520651202,-1979.68440234,0.00010999,2]
[335829963,1724520651211,-500.0,0.00010999,2]
[335829964,1724520651220,-500.0,0.00010999,2]
[335829965,1724520651229,-500.0,0.00010999,2]
[335829966,1724520651238,-500.0,0.00010999,2]
[335829967,1724520651247,-500.0,0.00010999,2]
[335829968,1724520651257,-500.0,0.00010999,2]
[335829969,1724520651266,-500.0,0.00010999,2]
[335829970,1724520651276,-500.0,0.00010999,2]
[335829971,1724520651285,-500.0,0.00010999,2]
[335829972,1724520651295,-500.0,0.00010999,2]
[335829973,1724520651306,-500.0,0.00010999,2]
[335829974,1724520651315,-500.0,0.00010999,2]
[335829975,1724520651324,-500.0,0.00010999,2]
[335829976,1724520651333,-500.0,0.00010999,2]
[335829977,1724520651342,-500.0,0.00010999,2]
[335829978,1724520651352,-500.0,0.00010999,2]
[335829979,1724520651362,-500.0,0.00010999,2]
[335829980,1724520651371,-500.0,0.00010999,2]
[335829981,1724520651380,-500.0,0.00010999,2]
[335829982,1724520651392,-500.0,0.00010999,2]
[335829983,1724520651402,-622.02,0.00010999,2]
[335829984,1724520651412,-500.0,0.00010999,2]
[335829985,1724520651423,-500.0,0.00010999,2]
[335829986,1724520651432,-622.02,0.00010999,2]
[335829987,1724520651442,-529.85,0.00010999,2]
[335829988,1724520651452,-500.0,0.00010999,2]
[335829989,1724520651462,-622.02,0.00010999,2]
[335829990,1724520651476,-500.0,0.00010999,2]
[335829991,1724520651485,-622.02,0.00010999,2]
[335829992,1724520651495,-617.95,0.00010999,2]
[335829993,1724520651505,-622.02,0.00010999,2]
[335829994,1724520651516,-622.02,0.00010999,2]
[335829995,1724520651528,-622.02,0.00010999,2]
[335829996,1724520651537,-622.02,0.00010999,2]
[335829997,1724520651547,-622.02,0.00010999,2]
[335829998,1724520651558,-622.02,0.00010999,2]
[335829999,1724520651568,-622.02,0.00010999,2]
[335830000,1724520651577,-622.02,0.00010999,2]
[335830001,1724520651586,-622.02,0.00010999,2]
[335830002,1724520651595,-622.02,0.00010999,2]
[335830003,1724520651604,-622.02,0.00010999,2]
[335830004,1724520651614,-622.02,0.00010999,2]
[335830005,1724520651623,-883.78,0.00010999,2]
[335830006,1724520651632,-622.02,0.00010999,2]
[335830007,1724520651641,-883.78,0.00010999,2]
[335830008,1724520651651,-622.02,0.00010999,2]
[335830009,1724520651660,-883.78,0.00010999,2]
[335830010,1724520651669,-622.02,0.00010999,2]
[335830011,1724520651678,-883.78,0.00010999,2]
[335830012,1724520651688,-622.02,0.00010999,2]
[335830013,1724520651698,-883.78,0.00010999,2]
[335830014,1724520651707,-622.14,0.00010999,2]
[335830015,1724520651717,-883.78,0.00010999,2]
[335830016,1724520651727,-883.78,0.00010999,2]
[335830017,1724520651736,-883.78,0.00010999,2]
[335830018,1724520651746,-883.78,0.00010999,2]
[335830019,1724520651755,-883.78,0.00010999,2]
[335830020,1724520651765,-883.78,0.00010999,2]
[335830021,1724520651775,-883.78,0.00010999,2]
[335830022,1724520651784,-883.78,0.00010999,2]
[335830023,1724520651793,-883.78,0.00010999,2]
[335830024,1724520651803,-883.78,0.00010999,2]
[335830025,1724520651812,-883.78,0.00010999,2]
[335830026,1724520651821,-883.78,0.00010999,2]
[335830027,1724520651831,-500.0,0.00010999,2]
[335830028,1724520651841,-883.78,0.00010999,2]
[335830029,1724520651851,-500.0,0.00010999,2]
[335830030,1724520651860,-883.78,0.00010999,2]
[335830031,1724520651870,-542.28,0.00010999,2]
[335830032,1724520651879,-500.0,0.00010999,2]
[335830033,1724520651889,-500.0,0.00010999,2]
[335830034,1724520651898,-883.96256176,0.00010999,2]
[335830035,1724520651908,-542.28,0.00010999,2]
[335830036,1724520651918,-500.0,0.00010999,2]
[335830037,1724520651927,-542.28,0.00010999,2]
[335830038,1724520651937,-500.0,0.00010999,2]
[335830039,1724520651947,-542.28,0.00010999,2]
[335830040,1724520651956,-500.0,0.00010999,2]
[335830041,1724520651966,-542.28,0.00010999,2]
[335830042,1724520651976,-500.0,0.00010999,2]
[335830043,1724520651986,-500.0,0.00010999,2]
[335830044,1724520651996,-542.28,0.00010999,2]
[335830045,1724520652005,-500.0,0.00010999,2]
[335830046,1724520652015,-500.0,0.00010999,2]
[335830047,1724520652024,-542.28,0.00010999,2]
[335830048,1724520652034,-500.0,0.00010999,2]
[335830049,1724520652043,-500.0,0.00010999,2]
[335830050,1724520652052,-542.28,0.00010999,2]
[335830051,1724520652062,-500.0,0.00010999,2]
[335830052,1724520652071,-500.0,0.00010999,2]
[335830053,1724520652080,-542.28,0.00010999,2]
[335830054,1724520652090,-500.0,0.00010999,2]
[335830055,1724520652099,-500.0,0.00010999,2]
[335830056,1724520652108,-542.28,0.00010999,2]
[335830057,1724520652117,-500.0,0.00010999,2]
[335830058,1724520652127,-500.0,0.00010999,2]
[335830059,1724520652137,-542.28,0.00010999,2]
[335830060,1724520652146,-500.0,0.00010999,2]
[335830061,1724520652159,-500.0,0.00010999,2]
[335830062,1724520652169,-542.28,0.00010999,2]
[335830063,1724520652179,-500.0,0.00010999,2]
[335830064,1724520652189,-500.0,0.00010999,2]
[335830065,1724520652199,-542.28,0.00010999,2]
[335830066,1724520652209,-500.0,0.00010999,2]
[335830067,1724520652219,-500.0,0.00010999,2]
[335830068,1724520652230,-542.28,0.00010999,2]
[335830069,1724520652241,-500.0,0.00010999,2]
[335830070,1724520652251,-500.0,0.00010999,2]
[335830071,1724520652260,-542.28,0.00010999,2]
[335830072,1724520652270,-500.0,0.00010999,2]
[335830073,1724520652280,-500.0,0.00010999,2]
[335830074,1724520652291,-542.28,0.00010999,2]
[335830075,1724520652300,-500.0,0.00010999,2]
[335830076,1724520652310,-500.0,0.00010999,2]
[335830077,1724520652320,-542.28,0.00010999,2]
[335830078,1724520652330,-500.0,0.00010999,2]
[335830079,1724520652340,-500.0,0.00010999,2]
[335830080,1724520652350,-542.28,0.00010999,2]
[335830081,1724520652359,-500.0,0.00010999,2]
[335830082,1724520652369,-500.0,0.00010999,2]
[335830083,1724520652379,-542.28,0.00010999,2]
[335830084,1724520652390,-500.0,0.00010999,2]
[335830085,1724520652402,-500.0,0.00010999,2]
[335830086,1724520652412,-542.39,0.00010999,2]
[335830087,1724520652421,-218.39,0.00010999,2]
[335830088,1724520652432,-500.0,0.00010999,2]
[335830089,1724520652442,-519.42,0.00010999,2]
[335830090,1724520652452,-500.0,0.00010999,2]
[335830091,1724520652461,-519.42,0.00010999,2]
[335830092,1724520652475,-500.0,0.00010999,2]
[335830093,1724520652485,-519.42,0.00010999,2]
[335830094,1724520652495,-329.62,0.00010999,2]
[335830095,1724520652505,-519.42,0.00010999,2]
[335830096,1724520652514,-519.42,0.00010999,2]
[335830097,1724520652523,-519.42,0.00010999,2]
[335830098,1724520652533,-519.42,0.00010999,2]
[335830099,1724520652546,-519.42,0.00010999,2]
[335830100,1724520652556,-519.42,0.00010999,2]
[335830101,1724520652566,-519.42,0.00010999,2]
[335830102,1724520652576,-830.23,0.00010999,2]
[335830103,1724520652586,-654.98,0.00010999,2]
[335830104,1724520652595,-519.42,0.00010999,2]
[335830105,1724520652605,-654.98,0.00010999,2]
[335830106,1724520652615,-830.23,0.00010999,2]
[335830107,1724520652625,-519.42,0.00010999,2]
[335830108,1724520652635,-654.98,0.00010999,2]
[335830109,1724520652645,-830.23,0.00010999,2]
[335830110,1724520652655,-519.42,0.00010999,2]
[335830111,1724520652665,-830.23,0.00010999,2]
[335830112,1724520652675,-519.42,0.00010999,2]
[335830113,1724520652684,-654.98,0.00010999,2]
[335830114,1724520652694,-830.23,0.00010999,2]
[335830115,1724520652703,-519.42,0.00010999,2]
[335830116,1724520652713,-654.98,0.00010999,2]
[335830117,1724520652723,-519.42,0.00010999,2]
[335830118,1724520652732,-830.23,0.00010999,2]
[335830119,1724520652741,-654.98,0.00010999,2]
[335830120,1724520652751,-519.42,0.00010999,2]
[335830121,1724520652760,-830.23,0.00010999,2]
[335830122,1724520652770,-654.98,0.00010999,2]
[335830123,1724520652779,-519.42,0.00010999,2]
[335830124,1724520652788,-654.98,0.00010999,2]
[335830125,1724520652797,-519.42,0.00010999,2]
[335830126,1724520652807,-830.23,0.00010999,2]
[335830127,1724520652815,-654.98,0.00010999,2]
[335830128,1724520652825,-519.44407753,0.00010999,2]
[335830129,1724520652834,-830.23,0.00010999,2]
[335830130,1724520652843,-654.98,0.00010999,2]
[335830131,1724520652852,-654.98,0.00010999,2]
[335830132,1724520652862,-830.23,0.00010999,2]
[335830133,1724520652871,-654.98,0.00010999,2]
[335830134,1724520652881,-830.23,0.00010999,2]
[335830135,1724520652891,-654.98,0.00010999,2]
[335830136,1724520652900,-830.23,0.00010999,2]
[335830137,1724520652910,-654.98,0.00010999,2]
[335830138,1724520652919,-830.23,0.00010999,2]
[335830139,1724520652929,-654.98,0.00010999,2]
[335830140,1724520652937,-830.23,0.00010999,2]
[335830141,1724520652947,-654.98,0.00010999,2]
[335830142,1724520652956,-830.23,0.00010999,2]
[335830143,1724520652965,-654.98,0.00010999,2]
[335830144,1724520652974,-830.23,0.00010999,2]
[335830145,1724520652983,-654.98,0.00010999,2]
[335830146,1724520652992,-830.23,0.00010999,2]
[335830147,1724520653002,-654.98,0.00010999,2]
[335830148,1724520653011,-830.23,0.00010999,2]
[335830149,1724520653020,-654.98,0.00010999,2]
[335830150,1724520653029,-830.23,0.00010999,2]
[335830151,1724520653038,-655.08,0.00010999,2]
[335830152,1724520653048,-830.32,0.00010999,2]
[335830153,1724520653058,-539.19,0.00010999,2]
[335830154,1724520653067,-539.19,0.00010999,2]
[335830155,1724520653076,-539.19,0.00010999,2]
[335830156,1724520653086,-539.19,0.00010999,2]
[335830157,1724520653096,-539.19,0.00010999,2]
[335830158,1724520653105,-539.19,0.00010999,2]
[335830159,1724520653115,-2200.31,0.00010999,2]
[335830160,1724520653124,-539.19,0.00010999,2]
[335830161,1724520653133,-2200.31,0.00010999,2]
[335830162,1724520653142,-539.19,0.00010999,2]
[335830163,1724520653153,-2200.31,0.00010999,2]
[335830164,1724520653163,-539.19,0.00010999,2]
[335830165,1724520653173,-2200.31,0.00010999,2]
[335830166,1724520653182,-539.19,0.00010999,2]
[335830167,1724520653191,-2200.31,0.00010999,2]
[335830168,1724520653200,-539.19,0.00010999,2]
[335830169,1724520653209,-2200.31,0.00010999,2]
[335830170,1724520653218,-539.19,0.00010999,2]
[335830171,1724520653228,-2200.31,0.00010999,2]
[335830172,1724520653237,-539.19,0.00010999,2]
[335830173,1724520653246,-2200.31,0.00010999,2]
[335830174,1724520653255,-539.19,0.00010999,2]
[335830175,1724520653264,-2200.31,0.00010999,2]
[335830176,1724520653274,-539.19,0.00010999,2]
[335830177,1724520653283,-2200.31,0.00010999,2]
[335830178,1724520653293,-539.19,0.00010999,2]
[335830179,1724520653303,-2200.31,0.00010999,2]
[335830180,1724520653312,-539.19,0.00010999,2]
[335830181,1724520653321,-539.19,0.00010999,2]
[335830182,1724520653329,-2200.31,0.00010999,2]
[335830183,1724520653339,-539.19,0.00010999,2]
[335830184,1724520653349,-2200.31,0.00010999,2]
[335830185,1724520653359,-539.19,0.00010999,2]
[335830186,1724520653368,-2200.31,0.00010999,2]
[335830187,1724520653378,-539.37,0.00010999,2]
[335830188,1724520653387,-2200.31,0.00010999,2]
[335830189,1724520653398,-2200.31,0.00010999,2]
[335830190,1724520653408,-2200.31,0.00010999,2]
[335830191,1724520653417,-2200.31,0.00010999,2]
[335830192,1724520653427,-2200.31,0.00010999,2]
[335830193,1724520653438,-2200.51670001,0.00010999,2]
[335830194,1724520653447,-529.32,0.00010999,2]
[335830195,1724520653458,-529.32,0.00010999,2]
[335830196,1724520653471,-531.91,0.00010999,2]
[335830197,1724520653481,-531.91,0.00010999,2]
[335830198,1724520653490,-529.32,0.00010999,2]
[335830199,1724520653499,-531.91,0.00010999,2]
[335830200,1724520653511,-529.32,0.00010999,2]
[335830201,1724520653521,-531.91,0.00010999,2]
[335830202,1724520653530,-529.32,0.00010999,2]
[335830203,1724520653539,-529.32,0.00010999,2]
[335830204,1724520653551,-531.91,0.00010999,2]
[335830205,1724520653561,-500.0,0.00010999,2]
[335830206,1724520653570,-529.32,0.00010999,2]
[335830207,1724520653579,-531.91,0.00010999,2]
[335830208,1724520653588,-500.0,0.00010999,2]
[335830209,1724520653597,-529.32,0.00010999,2]
[335830210,1724520653607,-500.0,0.00010999,2]
[335830211,1724520653616,-531.91,0.00010999,2]
[335830212,1724520653625,-529.32,0.00010999,2]
[335830213,1724520653637,-500.0,0.00010999,2]
[335830214,1724520653647,-531.91,0.00010999,2]
[335830215,1724520653658,-500.0,0.00010999,2]
[335830216,1724520653671,-531.91,0.00010999,2]
[335830217,1724520653680,-500.0,0.00010999,2]
[335830218,1724520653690,-529.32,0.00010999,2]
[335830219,1724520653699,-531.91,0.00010999,2]
[335830220,1724520653710,-500.0,0.00010999,2]
[335830221,1724520653720,-529.32,0.00010999,2]
[335830222,1724520653730,-531.91,0.00010999,2]
[335830223,1724520653741,-500.0,0.00010999,2]
[335830224,1724520653752,-531.91,0.00010999,2]
[335830225,1724520653762,-529.32,0.00010999,2]
[335830226,1724520653772,-500.0,0.00010999,2]
[335830227,1724520653782,-500.0,0.00010999,2]
[335830228,1724520653792,-531.91,0.00010999,2]
[335830229,1724520653802,-529.32,0.00010999,2]
[335830230,1724520653812,-500.0,0.00010999,2]
[335830231,1724520653822,-500.0,0.00010999,2]
[335830232,1724520653832,-531.91,0.00010999,2]
[335830233,1724520653845,-500.0,0.00010999,2]
[335830234,1724520653855,-529.32,0.00010999,2]
[335830235,1724520653866,-500.0,0.00010999,2]
[335830236,1724520653878,-531.91,0.00010999,2]
[335830237,1724520653888,-500.0,0.00010999,2]
[335830238,1724520654014,-529.32,0.00010999,2]
[335830239,1724520654024,-500.0,0.00010999,2]
[335830240,1724520654034,-531.91,0.00010999,2]
[335830241,1724520654044,-608.52,0.00010999,2]
[335830242,1724520654054,-529.32,0.00010999,2]
[335830243,1724520654064,-531.91,0.00010999,2]
[335830244,1724520654073,-500.0,0.00010999,2]
[335830245,1724520654083,-529.32,0.00010999,2]
[335830246,1724520654093,-531.91,0.00010999,2]
[335830247,1724520654102,-150.86952788,0.00010999,2]
[335830248,1724520654112,-529.32,0.00010999,2]
[335830249,1724520654121,-531.91,0.00010999,2]
[335830250,1724520654131,-529.32,0.00010999,2]
[335830251,1724520654140,-531.91,0.00010999,2]
[335830252,1724520654150,-529.38,0.00010999,2]
[335830253,1724520654163,-150.0,0.00010999,2]
[335830254,1724520654172,-1897.0,0.00010999,2]
[335830255,1724520654182,-552.0,0.00010999,2]
[335830256,1724520654191,-1154.0,0.00010999,2]
[335830257,1724520654200,-248.0,0.00010999,2]
[335830258,1724520654209,-3320.0,0.00010999,2]
[335830259,1724520654218,-764.0,0.00010999,2]
[335830260,1724520654229,-1077.0,0.00010999,2]
[335830261,1724520654238,-623.0,0.00010999,2]
[335830262,1724520654249,-1923.0,0.00010999,2]
[335830263,1724520654260,-1258.0,0.00010999,2]
[335830264,1724520654269,-3729.0,0.00010999,2]
[335830265,1724520654279,-289.0,0.00010999,2]
[335830266,1724520654291,-1544.0,0.00010999,2]
[335830267,1724520654301,-4893.968,0.00010999,2]
[335830268,1724520654311,-1206.0,0.00010999,2]
[335830269,1724520654321,-250.0,0.00010999,2]
[335830270,1724520654330,-216.0,0.00010999,2]
[335830271,1724520654341,-266.837,0.00010999,2]
[335830272,1724520654351,-150.0,0.00010999,2]
[335830273,1724520654360,-150.0,0.00010999,2]
[335830274,1724520654369,-6139.0,0.00010999,2]
[335830275,1724520654379,-631.0,0.00010999,2]
[335830276,1724520654390,-259136.76603214,0.00011,2]
[335830277,1724520654429,-292257.60656158,0.00011,2]
[335830278,1724520654439,-13027.09,0.00011,2]
[335830279,1724520654449,-1396334.02735789,0.00011,4]
[335830280,1724520654635,-322.08,0.00011,4]
[335830281,1724520685008,300.0,0.0001,3]
[335830282,1724520713761,317.08,8.281e-05,2]
[335830285,1724520767706,291.16,9.923e-05,2]
[335830299,1724520930757,150.0,0.00025163,120]
[335830302,1724521110742,150.0,0.00026941,120]
[335830303,1724521230808,150.0,0.00026304,120]
[335830305,1724521339638,167.07,9.834e-05,2]
[335830306,1724521343645,1000.0,9.837e-05,2]
[335830307,1724521349077,312.12,8.219e-05,2]
[335830308,1724521365565,1050.0,0.0001,2]
[335830309,1724521390659,298.88080064,0.00010009,2]
[335830317,1724521590717,150.0,0.00024567,120]
[335830318,1724521625818,300.0,0.0001,3]
[335830340,1724521771309,150.0,0.00024384,120]
[335830351,1724521831973,-700.0,0.000101,3]
[335830352,1724521831984,-1100.0,0.000102,3]
[335830353,1724521831995,-800.0,0.000103,3]
[335830354,1724521832088,-700.0,0.000103,3]
[335830355,1724521832100,-1600.0,0.000104,3]
[335830356,1724521832114,-200.0,0.000104,3]
[335830357,1724521832125,-300.0,0.00010448,2]
[335830358,1724521832136,-5250.0,0.00010449,2]
[335830494,1724521838014,-3444.90703308,0.00010449,2]
[335830496,1724521840252,-1179.6169749,0.00010449,2]
[335830497,1724521840265,-125.47599202,0.00010449,2]
[335830498,1724521840275,-198.76900796,0.00010449,2]
[335830501,1724521843326,-1149.06907123,0.00010449,2]
[335832601,1724521881426,167.08,9.85e-05,2]
[335832603,1724521951385,150.0,0.00025536,120]
[335832605,1724521998011,321.67,8.219e-05,2]
[335832606,1724521999667,1000.0,9.838e-05,2]
[335832607,1724522064561,155.0,9.838e-05,2]
[335832608,1724522190929,150.0,0.00024323,120]
[335832609,1724522204474,272.23,9.827e-05,2]
[335832610,1724522220054,4014.24243064,0.00022767,120]
[335832611,1724522230767,943.55,9.816e-05,2]
[335832612,1724522319606,2238.44612389,9.997e-05,2]
[335832613,1724522370734,150.0,0.00023986,120]
[335832614,1724522377624,266.34,9.822e-05,2]
[335832615,1724522386377,3284.640274,9.976e-05,2]
[335832616,1724522398874,155.0,0.00010009,2]
[335832617,1724522428863,155.0,0.00010009,2]
[335832619,1724522490472,328.92802902,0.00010009,2]
[335832620,1724522490747,150.0,0.0002513,120]
[335832621,1724522500497,200.0,9.825e-05,2]
[335832623,1724522545620,303.90593034,0.00010009,2]
[335832624,1724522545714,317.68,8.219e-05,2]
[335832625,1724522550173,314.91,9.814e-05,2]
[335832626,1724522550733,150.0,0.00025816,120]
[335832628,1724522564635,529.9,9.812e-05,2]
[335832629,1724522600425,155.0,0.00010009,2]
[335832630,1724522608897,500.0,0.00010958,60]
[335832631,1724522609166,506.36330898,0.00010989,60]
[335832632,1724522699830,250.0,9.81e-05,2]
[335832633,1724522730876,211.25763807,0.00010009,2]
[335832634,1724522731561,150.0,0.00025415,120]
[335832636,1724522789232,355.77669654,0.00010009,2]
[335832637,1724522791424,150.0,0.00025042,120]
[335832638,1724522792124,314.24701514,0.00010009,2]
[335832649,1724522850881,150.0,0.00024672,120]
[335832650,1724522878063,154.5,9.817e-05,2]
[335832653,1724522983823,524.25987859,0.00010009,2]
[335832664,1724523001184,840.0,9.811e-05,2]
[335832670,1724523032161,-347.83093604,0.00010026,2]
[335832671,1724523032171,-255.39191363,0.00010026,2]
[335832672,1724523032180,-155.61945661,0.00010026,2]
[335832673,1724523032189,-155.46554055,0.00010026,2]
[335832674,1724523032199,-155.44784194,0.00010026,2]
[335832675,1724523032208,-175.02110761,0.00010097,2]
[335832676,1724523032218,-440.02330588,0.00010097,2]
[335832677,1724523032227,-179.4623719,0.00010097,2]
[335832678,1724523032238,-460.1886,0.0001035,2]
[335832679,1724523032247,-1623.03335,0.0001035,2]
[335832680,1724523032256,-1623.03335,0.0001039,2]
[335832681,1724523032266,-778.17999836,0.0001043,2]
[335832682,1724523032277,-844.85335164,0.0001043,2]
[335832683,1724523032286,-125.90043173,0.00010449,2]
[335832684,1724523032297,-1497.13291827,0.00010449,2]
[335832685,1724523032307,-633.31693461,0.00010449,2]
[335832686,1724523032319,-827.13712285,0.00010449,2]
[335832687,1724523032340,-2933.40559046,0.00010449,2]
[335832688,1724523032351,-1262.29595931,0.00010449,2]
[335832689,1724523032368,-825.40068476,0.00010449,2]
[335832690,1724523032379,-590.71338148,0.00010449,2]
[335832691,1724523032391,-1344.78568796,0.00010449,2]
[335832692,1724523032447,-1582.94463857,0.00010449,2]
[335832693,1724523032458,-317.68,0.00010466,2]
[335832694,1724523032468,-1623.03335,0.0001047,2]
[335832695,1724523032477,-155.56398247,0.00010471,2]
[335832696,1724523032487,-698.86020573,0.00010505,2]
[335832697,1724523032497,-1623.03335,0.0001051,2]
[335832698,1724523032507,-155.0,0.00010566,2]
[335832699,1724523032516,-155.0,0.00010566,2]
[335832700,1724523032525,-150.0,0.00010599,2]
[335832701,1724523032535,-421.55,0.000106,2]
[335832702,1724523032544,-65.65441665,0.000106,2]
[335832712,1724523038258,-10000.0,0.00010449,2]
[335832713,1724523038269,-1354.05558335,0.000106,2]
[335832714,1724523038279,-321.97,0.000106,2]
[335832715,1724523038288,-421.55,0.000106,2]
[335832716,1724523038298,-421.55,0.000106,2]
[335832717,1724523038307,-421.55,0.000106,2]
[335832718,1724523038317,-150.0,0.000106,2]
[335832719,1724523038327,-853.5,0.000106,2]
[335832720,1724523038337,-150.0,0.000106,2]
[335832721,1724523038346,-421.55,0.000106,2]
[335832722,1724523038355,-150.0,0.000106,2]
[335832723,1724523038365,-790.9,0.000106,2]
[335832724,1724523038374,-790.9,0.000106,2]
[335832725,1724523038384,-150.0,0.000106,2]
[335832726,1724523038393,-421.55,0.000106,2]
[335832727,1724523038402,-150.0,0.000106,2]
[335832728,1724523038411,-421.55,0.000106,2]
[335832729,1724523038423,-150.0,0.000106,2]
[335832730,1724523038440,-150.0,0.000106,2]
[335832731,1724523038452,-790.9,0.000106,2]
[335832732,1724523038461,-150.0,0.000106,2]
[335832733,1724523038470,-150.0,0.000106,2]
[335832734,1724523038480,-421.55,0.000106,2]
[335832735,1724523038489,-790.9,0.000106,2]
[335832736,1724523038499,-302.25,0.000106,2]
[335832737,1724523038508,-196.43,0.000106,2]
[335832738,1724523038518,-421.55,0.000106,2]
[335832739,1724523038529,-790.9,0.000106,2]
[335832740,1724523038539,-719.68363062,0.000106,2]
[335832741,1724523038552,-71.21636938,0.000106,2]
[335832742,1724523038561,-421.55,0.000106,2]
[335832743,1724523038571,-421.55,0.000107,2]
[335832744,1724523038581,-630.26,0.000107,2]
[335832745,1724523038590,-855.75,0.000107,2]
[335832746,1724523038600,-150.66,0.000107,2]
[335832747,1724523038610,-300.0,0.000107,2]
[335832748,1724523038619,-150.0,0.000107,2]
[335832749,1724523038628,-160.12,0.000107,2]
[335832750,1724523038638,-1059.24,0.000107,2]
[335832751,1724523038648,-340.28,0.000107,2]
[335832752,1724523038658,-842.94,0.000107,2]
[335832753,1724523038667,-773.35,0.000107,2]
[335832754,1724523038677,-790.9,0.000107,2]
[335832755,1724523038686,-150.0,0.000107,2]